[Event "*** Titled Tuesday Blitz"]
[Site "Chess.com"]
[Date "2021.04.06"]
[Round "10"]
[White "Lion-Al-Messi"]
[Black "UCantHandleDenker"]
[Result "1-0"]
[WhiteElo "2508"]
[BlackElo "2581"]
[TimeControl "180+1"]
[EndTime "11:55:39 PDT"]
[Termination "Lion-Al-Messi won on time"]

1. d4 {[%clk 0:03:00.9]} 1... d6 {[%clk 0:03:00.9]} 2. Nf3 {[%clk 0:02:58.6]}
2... Nf6 {[%clk 0:02:59.9]} 3. Nc3 {[%clk 0:02:58.5]} 3... Nbd7 {[%clk
0:02:59.7]} 4. e4 {[%clk 0:02:58.2]} 4... e5 {[%clk 0:03:00.3]} 5. Bc4 {[%clk
0:02:58.3]} 5... Be7 {[%clk 0:03:00.4]} 6. O-O {[%clk 0:02:57.8]} 6... O-O
{[%clk 0:03:00.9]} 7. Bb3 {[%clk 0:02:57.1]} 7... c6 {[%clk 0:03:00.7]} 8. a4
{[%clk 0:02:56.8]} 8... b6 {[%clk 0:02:57.8]} 9. h3 {[%clk 0:02:54.7]} 9... a6
{[%clk 0:02:57.5]} 10. Be3 {[%clk 0:02:54.5]} 10... Rb8 {[%clk 0:02:51.7]} 11.
Qd2 {[%clk 0:02:43.4]} 11... b5 {[%clk 0:02:50.8]} 12. axb5 {[%clk 0:02:42.8]}
12... axb5 {[%clk 0:02:51.4]} 13. Rfd1 {[%clk 0:02:43.7]} 13... b4 {[%clk
0:02:50.4]} 14. Ne2 {[%clk 0:02:40.1]} 14... Nxe4 {[%clk 0:02:49.5]} 15. Qd3
{[%clk 0:02:39.4]} 15... Nef6 {[%clk 0:02:48.3]} 16. dxe5 {[%clk 0:02:37.5]}
16... dxe5 {[%clk 0:02:41.4]} 17. Ng3 {[%clk 0:02:37.1]} 17... Qc7 {[%clk
0:02:36]} 18. Ng5 {[%clk 0:02:36.6]} 18... Nc5 {[%clk 0:02:27.2]} 19. Bxc5
{[%clk 0:02:23.5]} 19... Bxc5 {[%clk 0:02:27.3]} 20. Nh5 {[%clk 0:02:24.4]}
20... e4 {[%clk 0:01:37.4]} 21. Nxf6+ {[%clk 0:02:15.2]} 21... gxf6 {[%clk
0:01:37.5]} 22. Nxe4 {[%clk 0:02:11.5]} 22... Be7 {[%clk 0:01:37.9]} 23. Qe3
{[%clk 0:02:06.1]} 23... Qe5 {[%clk 0:01:35.1]} 24. Ra7 {[%clk 0:02:02.2]} 24...
Rb7 {[%clk 0:01:31.3]} 25. f4 {[%clk 0:01:56.4]} 25... Qh5 {[%clk 0:01:20.9]}
26. Rda1 {[%clk 0:01:37]} 26... Qb5 {[%clk 0:00:56.9]} 27. Qg3+ {[%clk
0:01:33.8]} 27... Kh8 {[%clk 0:00:56.1]} 28. Ra8 {[%clk 0:01:26.1]} 28... Qf5
{[%clk 0:00:40.8]} 29. Qf3 {[%clk 0:01:12.6]} 29... Rd7 {[%clk 0:00:34.4]} 30.
Ng3 {[%clk 0:01:07.1]} 30... Qc5+ {[%clk 0:00:33.1]} 31. Kh2 {[%clk 0:01:07.5]}
31... Rd4 {[%clk 0:00:31.4]} 32. Bxf7 {[%clk 0:01:03.5]} 32... Bd6 {[%clk
0:00:29.2]} 33. Nh5 {[%clk 0:01:03.7]} 33... Qf5 {[%clk 0:00:25.8]} 34. R1a5
{[%clk 0:00:57.8]} 34... Qxc2 {[%clk 0:00:24.2]} 35. Qg3 {[%clk 0:00:52.5]}
35... Bxf4 {[%clk 0:00:04.7]} 36. Nxf4 {[%clk 0:00:52.7]} 1-0

[Event "*** Titled Tuesday Blitz"]
[Site "Chess.com"]
[Date "2021.04.06"]
[Round "10"]
[White "babyking1205"]
[Black "Jumbo"]
[Result "1-0"]
[WhiteElo "2616"]
[BlackElo "2816"]
[TimeControl "180+1"]
[EndTime "11:55:41 PDT"]
[Termination "babyking1205 won by resignation"]

1. e4 {[%clk 0:02:54.6]} 1... g6 {[%clk 0:02:59.1]} 2. d4 {[%clk 0:02:54.4]}
2... Bg7 {[%clk 0:02:59.5]} 3. Nc3 {[%clk 0:02:54.7]} 3... d6 {[%clk 0:02:58.1]}
4. f4 {[%clk 0:02:55]} 4... c6 {[%clk 0:02:56.7]} 5. Nf3 {[%clk 0:02:55.3]} 5...
d5 {[%clk 0:02:57.3]} 6. e5 {[%clk 0:02:55.1]} 6... Bg4 {[%clk 0:02:57.8]} 7.
Bd3 {[%clk 0:02:55.3]} 7... h5 {[%clk 0:02:56.7]} 8. h3 {[%clk 0:02:55.7]} 8...
Bxf3 {[%clk 0:02:56.4]} 9. Qxf3 {[%clk 0:02:56.6]} 9... e6 {[%clk 0:02:57]} 10.
Ne2 {[%clk 0:02:55.5]} 10... h4 {[%clk 0:02:57.1]} 11. Be3 {[%clk 0:02:55.6]}
11... Nd7 {[%clk 0:02:55]} 12. g4 {[%clk 0:02:55.7]} 12... hxg3 {[%clk
0:02:54.6]} 13. Nxg3 {[%clk 0:02:56.4]} 13... c5 {[%clk 0:02:39.6]} 14. c3
{[%clk 0:02:54]} 14... cxd4 {[%clk 0:02:22.6]} 15. Bxd4 {[%clk 0:02:53.5]} 15...
a6 {[%clk 0:02:20.1]} 16. O-O-O {[%clk 0:02:49.1]} 16... Qa5 {[%clk 0:02:12.9]}
17. Kb1 {[%clk 0:02:43.5]} 17... Rh4 {[%clk 0:02:07.8]} 18. f5 {[%clk
0:02:08.1]} 18... gxf5 {[%clk 0:01:58.6]} 19. Nxf5 {[%clk 0:02:08.2]} 19... exf5
{[%clk 0:01:52]} 20. Bxf5 {[%clk 0:02:09.1]} 20... Nh6 {[%clk 0:01:07.5]} 21. e6
{[%clk 0:01:11.4]} 21... fxe6 {[%clk 0:01:05.9]} 22. Bg6+ {[%clk 0:01:07.9]}
22... Ke7 {[%clk 0:00:49]} 23. Bxg7 {[%clk 0:01:07.8]} 23... Rg8 {[%clk
0:00:49.3]} 24. Qg3 {[%clk 0:01:01.4]} 24... Ra4 {[%clk 0:00:26.2]} 25. Bxh6
{[%clk 0:00:55.4]} 25... Rxa2 {[%clk 0:00:19.7]} 26. Bg5+ {[%clk 0:00:55.7]}
26... Nf6 {[%clk 0:00:19.3]} 27. Bxf6+ {[%clk 0:00:54.4]} 27... Kd7 {[%clk
0:00:19.4]} 28. Qg4 {[%clk 0:00:38.5]} 28... Ra4 {[%clk 0:00:14.9]} 29. Rxd5+
{[%clk 0:00:34.6]} 29... Qxd5 {[%clk 0:00:07.3]} 30. Qxa4+ {[%clk 0:00:34.6]}
30... b5 {[%clk 0:00:07.4]} 31. Qe4 {[%clk 0:00:34.9]} 1-0

[Event "*** Titled Tuesday Blitz"]
[Site "Chess.com"]
[Date "2021.04.06"]
[Round "10"]
[White "WPWPWP-2015"]
[Black "Kostukov_Alex"]
[Result "0-1"]
[WhiteElo "2421"]
[BlackElo "2318"]
[TimeControl "180+1"]
[EndTime "11:55:41 PDT"]
[Termination "Kostukov_Alex won by checkmate"]

1. e4 {[%clk 0:02:52.9]} 1... c5 {[%clk 0:02:59.2]} 2. Nc3 {[%clk 0:02:50.8]}
2... Nc6 {[%clk 0:02:54.1]} 3. Nf3 {[%clk 0:02:46.6]} 3... g6 {[%clk 0:02:53.7]}
4. Bb5 {[%clk 0:02:44]} 4... Nd4 {[%clk 0:02:53]} 5. O-O {[%clk 0:02:43.2]} 5...
Bg7 {[%clk 0:02:49.7]} 6. Bc4 {[%clk 0:02:40.4]} 6... e6 {[%clk 0:02:48.6]} 7.
a4 {[%clk 0:02:39.2]} 7... Ne7 {[%clk 0:02:39.8]} 8. a5 {[%clk 0:02:35.5]} 8...
d5 {[%clk 0:02:33.7]} 9. exd5 {[%clk 0:02:34]} 9... exd5 {[%clk 0:02:34.1]} 10.
Nxd4 {[%clk 0:02:25.5]} 10... cxd4 {[%clk 0:02:30.4]} 11. Bb5+ {[%clk
0:02:24.2]} 11... Nc6 {[%clk 0:02:30.6]} 12. Ne2 {[%clk 0:02:15.9]} 12... O-O
{[%clk 0:02:27.7]} 13. a6 {[%clk 0:02:13.7]} 13... Qb6 {[%clk 0:02:23.8]} 14.
axb7 {[%clk 0:02:07.8]} 14... Bxb7 {[%clk 0:02:21]} 15. Ba4 {[%clk 0:02:01.9]}
15... d3 {[%clk 0:02:00.3]} 16. cxd3 {[%clk 0:02:01.2]} 16... Ba6 {[%clk
0:01:59.8]} 17. Nf4 {[%clk 0:01:51.7]} 17... Nb4 {[%clk 0:01:44]} 18. Qf3 {[%clk
0:01:37.1]} 18... Qd4 {[%clk 0:01:35]} 19. Bb3 {[%clk 0:01:33.8]} 19... Bb7
{[%clk 0:01:19.1]} 20. Ra4 {[%clk 0:01:32.2]} 20... a5 {[%clk 0:01:18.2]} 21.
Qe3 {[%clk 0:00:33.6]} 21... Rfd8 {[%clk 0:00:52.4]} 22. Qxd4 {[%clk 0:00:27.2]}
22... Bxd4 {[%clk 0:00:52.1]} 23. Ne2 {[%clk 0:00:27.2]} 23... Bb6 {[%clk
0:00:47]} 24. d4 {[%clk 0:00:22.4]} 24... Ba6 {[%clk 0:00:41.8]} 25. Nc3 {[%clk
0:00:20.2]} 25... Bxf1 {[%clk 0:00:39.6]} 26. Kxf1 {[%clk 0:00:21.1]} 26... Re8
{[%clk 0:00:25]} 27. Ne2 {[%clk 0:00:19.7]} 27... Rac8 {[%clk 0:00:22.7]} 28.
Ra1 {[%clk 0:00:18.8]} 28... Nd3 {[%clk 0:00:21.2]} 29. Nc3 {[%clk 0:00:17]}
29... Re1# {[%clk 0:00:17.3]} 0-1

[Event "*** Titled Tuesday Blitz"]
[Site "Chess.com"]
[Date "2021.04.06"]
[Round "10"]
[White "jonaszmb"]
[Black "ri4mi"]
[Result "1-0"]
[WhiteElo "2493"]
[BlackElo "2344"]
[TimeControl "180+1"]
[EndTime "11:55:43 PDT"]
[Termination "jonaszmb won on time"]

1. Nf3 {[%clk 0:03:00.9]} 1... d5 {[%clk 0:02:59.5]} 2. c4 {[%clk 0:02:59.8]}
2... c6 {[%clk 0:02:59.4]} 3. b3 {[%clk 0:02:56.2]} 3... e6 {[%clk 0:02:58.2]}
4. Bb2 {[%clk 0:02:56.2]} 4... f5 {[%clk 0:02:58.6]} 5. d3 {[%clk 0:02:49.7]}
5... Nf6 {[%clk 0:02:58]} 6. Nbd2 {[%clk 0:02:49.5]} 6... Be7 {[%clk 0:02:56.4]}
7. Qc2 {[%clk 0:02:42]} 7... O-O {[%clk 0:02:55.4]} 8. e4 {[%clk 0:02:39.7]}
8... Nbd7 {[%clk 0:02:32.5]} 9. Be2 {[%clk 0:02:33.7]} 9... fxe4 {[%clk
0:02:21.4]} 10. dxe4 {[%clk 0:02:34.6]} 10... c5 {[%clk 0:01:45.1]} 11. exd5
{[%clk 0:02:25.5]} 11... exd5 {[%clk 0:01:46]} 12. cxd5 {[%clk 0:02:26.4]} 12...
Nxd5 {[%clk 0:01:39.7]} 13. O-O {[%clk 0:02:20.2]} 13... Kh8 {[%clk 0:01:36.9]}
14. Rfd1 {[%clk 0:02:09.7]} 14... Nf4 {[%clk 0:01:25.9]} 15. Bf1 {[%clk
0:02:09.5]} 15... Qc7 {[%clk 0:01:14.9]} 16. Re1 {[%clk 0:02:04.7]} 16... Bf6
{[%clk 0:01:11.2]} 17. Rad1 {[%clk 0:02:00.3]} 17... Bxb2 {[%clk 0:00:52.8]} 18.
Qxb2 {[%clk 0:02:01.2]} 18... Nf6 {[%clk 0:00:52.9]} 19. Nc4 {[%clk 0:01:55.5]}
19... Bg4 {[%clk 0:00:49.9]} 20. Nce5 {[%clk 0:01:54.9]} 20... Rae8 {[%clk
0:00:46.6]} 21. Bb5 {[%clk 0:01:39.9]} 21... Rxe5 {[%clk 0:00:33.8]} 22. Qxe5
{[%clk 0:01:29]} 22... Qxe5 {[%clk 0:00:33.2]} 23. Rxe5 {[%clk 0:01:24.8]} 23...
Nh3+ {[%clk 0:00:20.6]} 24. Kf1 {[%clk 0:01:19.6]} 24... Bxf3 {[%clk 0:00:20.4]}
25. gxf3 {[%clk 0:01:20.5]} 25... h6 {[%clk 0:00:19.2]} 26. Rxc5 {[%clk
0:01:15.1]} 26... Nh7 {[%clk 0:00:17.8]} 27. Be2 {[%clk 0:01:05.2]} 27... Nf4
{[%clk 0:00:16]} 28. Rdc1 {[%clk 0:01:02.3]} 28... Nxe2 {[%clk 0:00:11.3]} 29.
Kxe2 {[%clk 0:01:03.2]} 29... Re8+ {[%clk 0:00:10.7]} 30. Kf1 {[%clk 0:01:02.5]}
30... Ng5 {[%clk 0:00:10.5]} 31. Rc8 {[%clk 0:01:02.4]} 31... Rxc8 {[%clk
0:00:11]} 32. Rxc8+ {[%clk 0:01:03.1]} 32... Kh7 {[%clk 0:00:11.9]} 33. Kg2
{[%clk 0:01:03]} 33... Ne6 {[%clk 0:00:12.2]} 34. Rb8 {[%clk 0:01:02.6]} 34...
b6 {[%clk 0:00:11.3]} 35. Ra8 {[%clk 0:01:02.6]} 35... a5 {[%clk 0:00:11.2]} 36.
Rb8 {[%clk 0:01:02.6]} 36... Nd4 {[%clk 0:00:11.8]} 37. Rxb6 {[%clk 0:01:02.2]}
37... Nc2 {[%clk 0:00:12.7]} 38. Ra6 {[%clk 0:01:01.2]} 38... Nb4 {[%clk
0:00:13.2]} 39. Rxa5 {[%clk 0:01:01.1]} 1-0

[Event "*** Titled Tuesday Blitz"]
[Site "Chess.com"]
[Date "2021.04.06"]
[Round "10"]
[White "fastestmindalive"]
[Black "Goryachkina"]
[Result "1-0"]
[WhiteElo "2780"]
[BlackElo "2633"]
[TimeControl "180+1"]
[EndTime "11:55:45 PDT"]
[Termination "fastestmindalive won on time"]

1. e4 {[%clk 0:03:00.9]} 1... c5 {[%clk 0:02:59.9]} 2. Nc3 {[%clk 0:03:00.7]}
2... d6 {[%clk 0:02:58.7]} 3. f4 {[%clk 0:03:01]} 3... g6 {[%clk 0:02:57.4]} 4.
Nf3 {[%clk 0:03:01.9]} 4... Bg7 {[%clk 0:02:57.6]} 5. Bb5+ {[%clk 0:03:02.5]}
5... Bd7 {[%clk 0:02:53.9]} 6. a4 {[%clk 0:03:02.9]} 6... e6 {[%clk 0:02:52.8]}
7. O-O {[%clk 0:03:01.6]} 7... Ne7 {[%clk 0:02:52.7]} 8. d3 {[%clk 0:03:01.9]}
8... O-O {[%clk 0:02:51.2]} 9. Qe1 {[%clk 0:03:00.3]} 9... Bxb5 {[%clk
0:02:46.4]} 10. axb5 {[%clk 0:03:00.1]} 10... Nd7 {[%clk 0:02:46.4]} 11. Qh4
{[%clk 0:02:54.2]} 11... a6 {[%clk 0:02:36.5]} 12. f5 {[%clk 0:02:52.8]} 12...
exf5 {[%clk 0:02:25.6]} 13. Bh6 {[%clk 0:02:49]} 13... fxe4 {[%clk 0:02:08.9]}
14. Ng5 {[%clk 0:02:46.1]} 14... Bd4+ {[%clk 0:01:36.3]} 15. Kh1 {[%clk
0:02:45.4]} 15... Nf5 {[%clk 0:01:33.7]} 16. Rxf5 {[%clk 0:02:39.7]} 16... gxf5
{[%clk 0:01:33.6]} 17. Bg7 {[%clk 0:01:50]} 17... Qxg5 {[%clk 0:01:10.6]} 18.
Qxg5 {[%clk 0:01:46.6]} 18... Bxg7 {[%clk 0:01:11.2]} 19. Qxf5 {[%clk 0:01:40]}
19... axb5 {[%clk 0:01:03.7]} 20. Rxa8 {[%clk 0:01:29.4]} 20... Rxa8 {[%clk
0:01:03]} 21. h3 {[%clk 0:01:27.8]} 21... exd3 {[%clk 0:00:56.4]} 22. cxd3
{[%clk 0:01:25.1]} 22... b4 {[%clk 0:00:48.5]} 23. Ne4 {[%clk 0:01:18.6]} 23...
Ne5 {[%clk 0:00:20.5]} 24. Nxd6 {[%clk 0:01:16.2]} 24... Rd8 {[%clk 0:00:20.4]}
25. Nxb7 {[%clk 0:01:14.5]} 25... Rxd3 {[%clk 0:00:20]} 26. Qc8+ {[%clk
0:01:10.4]} 26... Bf8 {[%clk 0:00:19.8]} 27. Kh2 {[%clk 0:00:43.7]} 27... c4
{[%clk 0:00:19.5]} 28. Nc5 {[%clk 0:00:41.4]} 28... Rd1 {[%clk 0:00:14.4]} 29.
Ne6 {[%clk 0:00:35.4]} 29... Ng6 {[%clk 0:00:03.4]} 30. Nxf8 {[%clk 0:00:34.8]}
30... Nxf8 {[%clk 0:00:01.6]} 31. Qg4+ {[%clk 0:00:34.8]} 1-0

[Event "*** Titled Tuesday Blitz"]
[Site "Chess.com"]
[Date "2021.04.06"]
[Round "10"]
[White "Andreikka"]
[Black "federicosellitti"]
[Result "1-0"]
[WhiteElo "2873"]
[BlackElo "2616"]
[TimeControl "180+1"]
[EndTime "11:55:47 PDT"]
[Termination "Andreikka won on time"]

1. d4 {[%clk 0:02:59.4]} 1... d5 {[%clk 0:02:59.3]} 2. Nc3 {[%clk 0:02:58.3]}
2... Nf6 {[%clk 0:02:53]} 3. Bf4 {[%clk 0:02:56.6]} 3... c6 {[%clk 0:02:47.6]}
4. e3 {[%clk 0:02:54.5]} 4... Bf5 {[%clk 0:02:43.5]} 5. h4 {[%clk 0:02:52.2]}
5... e6 {[%clk 0:02:41.2]} 6. Bd3 {[%clk 0:02:46.3]} 6... Bxd3 {[%clk
0:02:39.2]} 7. cxd3 {[%clk 0:02:47.2]} 7... Bd6 {[%clk 0:02:39.7]} 8. Be5 {[%clk
0:02:43.9]} 8... Qe7 {[%clk 0:02:32.3]} 9. f4 {[%clk 0:02:39.7]} 9... Nfd7
{[%clk 0:02:21]} 10. Nf3 {[%clk 0:02:30.7]} 10... f6 {[%clk 0:02:20]} 11. Bxd6
{[%clk 0:02:28.4]} 11... Qxd6 {[%clk 0:02:20.9]} 12. Qe2 {[%clk 0:02:23.7]}
12... Na6 {[%clk 0:02:17]} 13. g4 {[%clk 0:02:19.9]} 13... O-O-O {[%clk
0:01:55.3]} 14. O-O-O {[%clk 0:02:19.4]} 14... Kb8 {[%clk 0:01:54.8]} 15. g5
{[%clk 0:02:14.2]} 15... c5 {[%clk 0:01:51.5]} 16. Kb1 {[%clk 0:02:13.7]} 16...
Rc8 {[%clk 0:01:50.8]} 17. Rc1 {[%clk 0:02:13]} 17... e5 {[%clk 0:01:37.1]} 18.
fxe5 {[%clk 0:02:01.9]} 18... fxe5 {[%clk 0:01:38]} 19. Qh2 {[%clk 0:02:02]}
19... cxd4 {[%clk 0:01:25.1]} 20. exd4 {[%clk 0:02:00.6]} 20... Ka8 {[%clk
0:01:11.1]} 21. dxe5 {[%clk 0:01:56.7]} 21... Qe6 {[%clk 0:00:56.8]} 22. Rhe1
{[%clk 0:01:41.1]} 22... Nac5 {[%clk 0:00:50.1]} 23. Qd2 {[%clk 0:01:33.6]}
23... Nb6 {[%clk 0:00:50.1]} 24. Nd4 {[%clk 0:01:29.5]} 24... Qg4 {[%clk
0:00:46.6]} 25. Ncb5 {[%clk 0:01:29.5]} 25... a6 {[%clk 0:00:13.6]} 26. Qa5
{[%clk 0:01:28.8]} 26... Nbd7 {[%clk 0:00:13.9]} 27. e6 {[%clk 0:01:29.3]} 27...
Ne5 {[%clk 0:00:04.5]} 28. Nc7+ {[%clk 0:01:07]} 28... Rxc7 {[%clk 0:00:04.2]}
29. Qxc7 {[%clk 0:01:07]} 29... Nexd3 {[%clk 0:00:04.8]} 30. e7 {[%clk
0:00:55.5]} 30... Qxd4 {[%clk 0:00:04.9]} 31. e8=Q+ {[%clk 0:00:52]} 31... Ka7
{[%clk 0:00:02.6]} 32. Qcb8+ {[%clk 0:00:43.8]} 32... Kb6 {[%clk 0:00:02.8]} 33.
Re6+ {[%clk 0:00:40.7]} 33... Ka5 {[%clk 0:00:01.9]} 34. Qc7+ {[%clk 0:00:38]}
1-0

[Event "*** Titled Tuesday Blitz"]
[Site "Chess.com"]
[Date "2021.04.06"]
[Round "10"]
[White "Zhigalko_Sergei"]
[Black "marianokar"]
[Result "1-0"]
[WhiteElo "2894"]
[BlackElo "2562"]
[TimeControl "180+1"]
[EndTime "11:55:47 PDT"]
[Termination "Zhigalko_Sergei won by resignation"]

1. e4 {[%clk 0:03:00.9]} 1... c5 {[%clk 0:02:58.5]} 2. Nf3 {[%clk 0:03:00.5]}
2... e6 {[%clk 0:02:58.9]} 3. c3 {[%clk 0:03:00.5]} 3... Nf6 {[%clk 0:02:58.1]}
4. e5 {[%clk 0:02:59.4]} 4... Nd5 {[%clk 0:02:58.3]} 5. Bc4 {[%clk 0:02:58.3]}
5... d6 {[%clk 0:02:58.4]} 6. d4 {[%clk 0:02:58.3]} 6... cxd4 {[%clk 0:02:58.7]}
7. cxd4 {[%clk 0:02:58.6]} 7... Bd7 {[%clk 0:02:54.9]} 8. O-O {[%clk 0:02:56.2]}
8... Bc6 {[%clk 0:02:54.9]} 9. Nbd2 {[%clk 0:02:52.5]} 9... Nd7 {[%clk
0:02:36.5]} 10. Re1 {[%clk 0:02:46.6]} 10... Be7 {[%clk 0:02:26.7]} 11. Ne4
{[%clk 0:02:39.6]} 11... dxe5 {[%clk 0:02:26.8]} 12. dxe5 {[%clk 0:02:39.8]}
12... O-O {[%clk 0:02:27.1]} 13. a3 {[%clk 0:02:36.2]} 13... Nc5 {[%clk
0:02:25.3]} 14. Nxc5 {[%clk 0:02:30.9]} 14... Bxc5 {[%clk 0:02:24.8]} 15. Ng5
{[%clk 0:02:31.6]} 15... Nb6 {[%clk 0:02:00]} 16. Bd3 {[%clk 0:01:53.3]} 16...
h6 {[%clk 0:01:57.2]} 17. Bh7+ {[%clk 0:01:42.1]} 17... Kh8 {[%clk 0:01:56.3]}
18. Qh5 {[%clk 0:01:43]} 18... Qe8 {[%clk 0:00:47.8]} 19. b4 {[%clk 0:00:43]}
19... Bd4 {[%clk 0:00:44.4]} 20. Ra2 {[%clk 0:00:43.6]} 20... f6 {[%clk
0:00:42.8]} 21. Bg6 {[%clk 0:00:41.4]} 21... fxg5 {[%clk 0:00:42.9]} 22. Bxe8
{[%clk 0:00:39.6]} 22... Bxe8 {[%clk 0:00:42.9]} 23. Qg4 {[%clk 0:00:36.2]}
23... Bc3 {[%clk 0:00:39.8]} 24. Bd2 {[%clk 0:00:27.6]} 24... Bxd2 {[%clk
0:00:35]} 25. Rxd2 {[%clk 0:00:27.4]} 25... Rf5 {[%clk 0:00:35.9]} 26. h4 {[%clk
0:00:19.4]} 26... Bc6 {[%clk 0:00:30.4]} 27. Red1 {[%clk 0:00:16.7]} 27... Nd5
{[%clk 0:00:25.8]} 28. Rxd5 {[%clk 0:00:14.4]} 28... Bxd5 {[%clk 0:00:25.7]} 29.
Rxd5 {[%clk 0:00:14.3]} 1-0

[Event "*** Titled Tuesday Blitz"]
[Site "Chess.com"]
[Date "2021.04.06"]
[Round "10"]
[White "moro182"]
[Black "nochewycandy"]
[Result "1-0"]
[WhiteElo "2741"]
[BlackElo "2612"]
[TimeControl "180+1"]
[EndTime "11:55:51 PDT"]
[Termination "moro182 won by resignation"]

1. d4 {[%clk 0:03:00.9]} 1... g6 {[%clk 0:03:00.4]} 2. e4 {[%clk 0:03:00.3]}
2... Bg7 {[%clk 0:03:00.7]} 3. Nc3 {[%clk 0:03:00.8]} 3... d6 {[%clk 0:03:01.3]}
4. Be3 {[%clk 0:03:00.5]} 4... a6 {[%clk 0:03:01.7]} 5. g4 {[%clk 0:03:00]} 5...
b5 {[%clk 0:03:00.3]} 6. Bg2 {[%clk 0:02:58.8]} 6... Bb7 {[%clk 0:02:56.3]} 7.
h4 {[%clk 0:02:58.1]} 7... h6 {[%clk 0:02:56.8]} 8. Nge2 {[%clk 0:02:52.2]} 8...
Nf6 {[%clk 0:02:43.2]} 9. Ng3 {[%clk 0:02:48.6]} 9... Nbd7 {[%clk 0:02:36.9]}
10. g5 {[%clk 0:02:27.1]} 10... hxg5 {[%clk 0:02:36.2]} 11. hxg5 {[%clk
0:02:26.7]} 11... Rxh1+ {[%clk 0:02:36.2]} 12. Bxh1 {[%clk 0:02:27.1]} 12... Nh7
{[%clk 0:02:36]} 13. a4 {[%clk 0:02:23.7]} 13... b4 {[%clk 0:02:36]} 14. Nd5
{[%clk 0:02:23.5]} 14... c5 {[%clk 0:02:34.3]} 15. dxc5 {[%clk 0:01:56]} 15...
dxc5 {[%clk 0:02:35.2]} 16. Bf4 {[%clk 0:01:50.6]} 16... Be5 {[%clk 0:02:06]}
17. Bxe5 {[%clk 0:01:42]} 17... Nxe5 {[%clk 0:02:06]} 18. f4 {[%clk 0:01:42.2]}
18... Nc4 {[%clk 0:02:02.4]} 19. b3 {[%clk 0:01:21.4]} 19... Bxd5 {[%clk
0:02:02.1]} 20. Qxd5 {[%clk 0:01:20.7]} 20... Qxd5 {[%clk 0:02:01.6]} 21. exd5
{[%clk 0:01:21.5]} 21... Nd6 {[%clk 0:01:58]} 22. O-O-O {[%clk 0:01:15.2]} 22...
f6 {[%clk 0:01:47.3]} 23. gxf6 {[%clk 0:01:12.4]} 23... exf6 {[%clk 0:01:39.8]}
24. Ne4 {[%clk 0:01:09.6]} 24... Nxe4 {[%clk 0:01:37.3]} 25. Bxe4 {[%clk
0:01:09.1]} 25... f5 {[%clk 0:01:36.4]} 26. Bf3 {[%clk 0:01:03]} 26... O-O-O
{[%clk 0:01:30.3]} 27. Re1 {[%clk 0:00:43.1]} 27... Rd6 {[%clk 0:01:23.7]} 28.
Re8+ {[%clk 0:00:36.7]} 28... Kd7 {[%clk 0:01:18.1]} 29. Rg8 {[%clk 0:00:26.3]}
29... Nf6 {[%clk 0:01:16.2]} 30. Rg7+ {[%clk 0:00:21.6]} 30... Ke8 {[%clk
0:01:16.5]} 31. Rxg6 {[%clk 0:00:22.2]} 31... Kf7 {[%clk 0:01:16.9]} 32. Rh6
{[%clk 0:00:21.3]} 32... Kg7 {[%clk 0:01:16.5]} 33. Rh1 {[%clk 0:00:21.3]} 33...
Ne4 {[%clk 0:01:13]} 34. Bxe4 {[%clk 0:00:18.1]} 34... fxe4 {[%clk 0:01:13.9]}
35. Rh5 {[%clk 0:00:18.3]} 35... Rf6 {[%clk 0:01:05.7]} 36. Kd2 {[%clk
0:00:17.2]} 36... Rxf4 {[%clk 0:01:05.3]} 37. Ke3 {[%clk 0:00:17.5]} 37... Rf1
{[%clk 0:01:02]} 38. Kxe4 {[%clk 0:00:14.5]} 38... Kf6 {[%clk 0:01:00.9]} 39.
Rh6+ {[%clk 0:00:14.4]} 39... Ke7 {[%clk 0:01:01.3]} 40. Rxa6 {[%clk 0:00:14.8]}
40... Rc1 {[%clk 0:00:56.9]} 41. Kd3 {[%clk 0:00:14.4]} 41... Kd7 {[%clk
0:00:53.8]} 42. a5 {[%clk 0:00:14.8]} 42... Rd1+ {[%clk 0:00:51.7]} 43. Kc4
{[%clk 0:00:14.6]} 43... Rd2 {[%clk 0:00:52.1]} 44. Kxc5 {[%clk 0:00:14.6]}
44... Rxc2+ {[%clk 0:00:52.1]} 45. Kxb4 {[%clk 0:00:15.2]} 45... Rd2 {[%clk
0:00:51.7]} 46. d6 {[%clk 0:00:14.8]} 46... Rd4+ {[%clk 0:00:51.2]} 47. Ka3
{[%clk 0:00:15.2]} 47... Rxd6 {[%clk 0:00:50.5]} 48. Rxd6+ {[%clk 0:00:14.7]}
48... Kxd6 {[%clk 0:00:51.4]} 49. Kb4 {[%clk 0:00:15.4]} 1-0